[Event "FIDE World Rapid-ch Open 2018"]
[White "Grigoriants, Sergey"]
[Black "Steinberg, Nitzan"]
[Site "St. Petersburg"]
[Round "13.33"]
[Annotator "ChessBase"]
[Result "1/2-1/2"]
[Date "2018.12.28"]
[WhiteElo "2540"]
[BlackElo "2532"]
[PlyCount "91"]
[TimeControl "900+10"]

1. c4 {[%emt 0:0:0]} c6 {[%emt 0:0:0]} 2. Nf3 {[%emt 0:0:17]} d5 {[%emt 0:0:0]} 3. e3 {[%emt 0:0:10]} Nf6 {[%emt 0:0:2]} 4. Nc3 {[%emt 0:0:6]} e6 {[%emt 0:0:13]} 5. d4 {[%emt 0:0:41]} Nbd7 {[%emt 0:0:3]} 6. Qc2 {[%emt 0:0:0]} Bd6 {[%emt 0:0:2]} 7. Bd3 {[%emt 0:0:13]} dxc4 {[%emt 0:0:2]} 8. Bxc4 {[%emt 0:0:2]} b5 {[%emt 0:0:1]} 9. Be2 {[%emt 0:0:12]} Bb7 {[%emt 0:0:0]} 10. 0-0 {[%emt 0:0:54]} Qc7 {[%emt 0:2:29]} 11. e4 {[%emt 0:1:15]} e5 {[%emt 0:1:7]} 12. dxe5 {[%emt 0:2:4]} Nxe5 {[%emt 0:0:30]} 13. Nd4 {[%emt 0:5:27]
} 0-0 {[%emt 0:2:3]} 14. Nf5 {[%emt 0:0:31]} Bc5 {[%emt 0:0:0]} 15. h3 {[%emt 0:0:54]} Ng6 {[%emt 0:0:53]} 16. Bg5 {[%emt 0:1:55]} Nd7 {[%emt 0:0:42]} 17. Rad1 {[%emt 0:0:16]} Rfe8 {[%emt 0:0:25]} 18. b4 {[%emt 0:0:9]
} h6 {[%emt 0:2:24]} 19. Bc1 {[%emt 0:2:28]} Bb6 {[%emt 0:0:0]} 20. Nxb5 {[%emt 0:0:2]} cxb5 {[%emt 0:0:1]} 21. Qxc7 {[%emt 0:0:2]} Bxc7 {[%emt 0:0:1]} 22. Rxd7 {[%emt 0:0:1]} Rac8 {[%emt 0:0:0]} 23. Bxb5 {[%emt 0:0:14]} Rxe4 {[%emt 0:0:11]} 24. a3 {[%emt 0:0:32]} Re5 25. Nd6 Bxd6 {[%emt 0:1:35]} 26. Rxb7 {[%emt 0:0:11]} Rd5 {[%emt 0:1:25]} 27. Ba4 Nf4 {[%emt 0:0:1]
} 28. Bxf4 {[%emt 0:0:32]} Bxf4 29. Bb3 {[%emt 0:0:11]} Rd3 {[%emt 0:0:11]
} 30. Bxf7+ {[%emt 0:0:4]} Kf8 31. Bg6 Rd4 {[%emt 0:0:20]} 32. Rxa7 {[%emt 0:0:22]} Rc6 {[%emt 0:0:6]} 33. Bh5 {[%emt 0:0:20]} g6 {[%emt 0:0:29]
} 34. Bf3 {[%emt 0:0:9]} Rc2 {[%emt 0:0:1]} 35. Re1 {[%emt 0:0:0]} Rdd2 {[%emt 0:0:7]} 36. Be4 {[%emt 0:0:3]} Re2 37. Kf1 {[%emt 0:0:0]} Rxf2+ {[%emt 0:0:53]} 38. Kg1 {[%emt 0:0:0]} Rfe2 39. Ra8+ {[%emt 0:0:0]} Kg7 {[%emt 0:0:21]} 40. Bxc2 {[%emt 0:0:5]} Be3+ {[%emt 0:0:13]} 41. Kh2 {[%emt 0:0:9]} Bf4+ {[%emt 0:0:5]} 42. Kg1 {[%emt 0:0:9]} Be3+ {[%emt 0:0:0]
} 43. Kf1 {[%emt 0:0:13]} Rf2+ {[%emt 0:0:1]} 44. Kg1 {[%emt 0:0:1]
} Re2+ {[%emt 0:0:1]} 45. Kf1 {[%emt 0:0:28]} Rf2+ {[%emt 0:0:0]} 46. Kg1 {[%emt 0:0:1]} 1/2-1/2

[Event "FIDE World Rapid-ch Open 2018"]
[White "Le, Quang Liem"]
[Black "Yakubboev, Nodirbek"]
[Site "St. Petersburg"]
[Round "13.34"]
[Annotator "ChessBase"]
[Result "1-0"]
[Date "2018.12.28"]
[WhiteElo "2714"]
[BlackElo "2556"]
[PlyCount "85"]
[TimeControl "900+10"]

1. c4 {[%emt 0:0:0]} e5 {[%emt 0:0:0]} 2. g3 {[%emt 0:0:0]} Nc6 {[%emt 0:0:0]} 3. Bg2 {[%emt 0:0:0]} f5 {[%emt 0:0:4]} 4. Nc3 {[%emt 0:0:6]} Nf6 {[%emt 0:0:6]} 5. a3 {[%emt 0:0:10]} g6 {[%emt 0:1:10]} 6. b4 {[%emt 0:0:0]} Bg7 {[%emt 0:0:7]} 7. d3 {[%emt 0:0:28]} Ne7 {[%emt 0:0:54]} 8. Bb2 {[%emt 0:0:9]
} 0-0 {[%emt 0:0:34]} 9. e3 {[%emt 0:0:28]} c6 {[%emt 0:1:28]} 10. c5 {[%emt 0:0:21]} d5 {[%emt 0:0:7]} 11. cxd6 {[%emt 0:0:2]} Qxd6 {[%emt 0:0:1]
} 12. Nf3 {[%emt 0:0:13]} Kh8 {[%emt 0:1:21]} 13. 0-0 {[%emt 0:0:0]} Be6 {[%emt 0:0:4]} 14. Qc2 {[%emt 0:0:34]} Rad8 {[%emt 0:0:46]} 15. Rfd1 {[%emt 0:0:3]} Nd7 {[%emt 0:1:17]} 16. Na4 {[%emt 0:1:13]} b6 {[%emt 0:0:21]
} 17. Rac1 {[%emt 0:0:21]} Rc8 {[%emt 0:0:15]} 18. Nd2 {[%emt 0:2:35]
} Qb8 {[%emt 0:0:36]} 19. Nc3 {[%emt 0:0:47]} Bg8 {[%emt 0:0:0]} 20. Qb1 {[%emt 0:0:15]} b5 {[%emt 0:0:16]} 21. Ba1 {[%emt 0:0:39]} a6 {[%emt 0:1:4]
} 22. Nb3 {[%emt 0:0:10]} c5 {[%emt 0:1:30]} 23. Na5 {[%emt 0:0:0]} Qb6 {[%emt 0:1:0]} 24. Rc2 {[%emt 0:0:41]} Rc7 {[%emt 0:0:28]} 25. Rdc1 {[%emt 0:0:27]} Rfc8 {[%emt 0:0:8]} 26. Ne2 {[%emt 0:0:31]} Bd5 {[%emt 0:0:29]
} 27. Bxd5 {[%emt 0:0:58]} Nxd5 {[%emt 0:0:2]} 28. Qa2 {[%emt 0:0:17]
} Ne7 {[%emt 0:2:12]} 29. Nb3 {[%emt 0:0:14]} Qe6 {[%emt 0:0:0]} 30. Qb1 {[%emt 0:1:24]} c4 {[%emt 0:0:11]} 31. Nd2 {[%emt 0:0:29]} Nb6 {[%emt 0:0:2]} 32. dxc4 {[%emt 0:0:4]} Nxc4 {[%emt 0:0:14]} 33. Nxc4 Rxc4 {[%emt 0:0:2]} 34. Rxc4 {[%emt 0:0:21]} Rxc4 {[%emt 0:0:2]} 35. Rd1 {[%emt 0:0:10]
} h6 {[%emt 0:0:12]} 36. Nc1 {[%emt 0:0:15]} Nd5 {[%emt 0:0:0]} 37. Nb3 {[%emt 0:0:8]} Kh7 {[%emt 0:0:28]} 38. Nc5 {[%emt 0:0:5]} Qc6 {[%emt 0:0:3]} 39. Qd3 {[%emt 0:0:5]} Nb6 {[%emt 0:0:11]} 40. Qd8 {[%emt 0:0:11]
} Na4 {[%emt 0:0:9]} 41. Bxe5 {[%emt 0:0:49]} Bxe5 {[%emt 0:0:0]} 42. Qe7+ {[%emt 0:0:2]} Bg7 {[%emt 0:0:9]} 43. Ne6 {[%emt 0:0:2]} 1-0

[Event "FIDE World Rapid-ch Open 2018"]
[White "Fedoseev, Vladimir"]
[Black "Postny, Evgeny"]
[Site "St. Petersburg"]
[Round "13.35"]
[Annotator "ChessBase"]
[Result "0-1"]
[Date "2018.12.28"]
[WhiteElo "2719"]
[BlackElo "2615"]
[PlyCount "112"]
[TimeControl "900+10"]

1. e4 {[%emt 0:2:36]} e5 {[%emt 0:0:0]} 2. Nf3 {[%emt 0:0:1]} Nc6 {[%emt 0:0:0]
} 3. Bb5 {[%emt 0:0:1]} a6 {[%emt 0:0:0]} 4. Ba4 {[%emt 0:0:0]} Nf6 {[%emt 0:0:0]} 5. 0-0 {[%emt 0:0:2]} Be7 {[%emt 0:0:0]} 6. Re1 {[%emt 0:0:2]
} b5 {[%emt 0:0:0]} 7. Bb3 {[%emt 0:0:1]} d6 {[%emt 0:0:0]} 8. a4 {[%emt 0:0:2]} b4 {[%emt 0:0:12]} 9. c3 {[%emt 0:0:16]} 0-0 {[%emt 0:0:0]} 10. d3 {[%emt 0:0:41]} Rb8 {[%emt 0:0:22]} 11. Nbd2 {[%emt 0:0:19]} Na5 {[%emt 0:0:10]} 12. Ba2 {[%emt 0:0:2]} c5 {[%emt 0:0:5]} 13. Nc4 {[%emt 0:0:15]
} Nxc4 {[%emt 0:1:5]} 14. Bxc4 {[%emt 0:0:12]} bxc3 {[%emt 0:0:0]} 15. bxc3 {[%emt 0:0:1]} Be6 {[%emt 0:0:8]} 16. Bxe6 {[%emt 0:0:54]
} fxe6 {[%emt 0:0:2]} 17. Qe2 {[%emt 0:0:35]} Qc8 {[%emt 0:2:55]} 18. Ba3 {[%emt 0:0:15]
} Re8 {[%emt 0:1:15]} 19. Rec1 {[%emt 0:0:31]} Qc6 {[%emt 0:0:0]} 20. Qa2 {[%emt 0:0:15]} Bf8 {[%emt 0:0:15]} 21. a5 {[%emt 0:1:1]} c4 {[%emt 0:0:9]
} 22. Qxc4 {[%emt 0:0:13]} Qxc4 {[%emt 0:0:3]} 23. dxc4 {[%emt 0:0:1]
} Nxe4 {[%emt 0:0:3]} 24. c5 {[%emt 0:0:1]} d5 {[%emt 0:0:0]} 25. c6 {[%emt 0:0:11]} Bc5 {[%emt 0:3:0]} 26. Bxc5 {[%emt 0:1:5]} Nxc5 {[%emt 0:0:2]} 27. Rcb1 {[%emt 0:0:9]} Nb3 {[%emt 0:1:28]} 28. c7 {[%emt 0:0:1]
} Rb5 {[%emt 0:0:1]} 29. Nxe5 {[%emt 0:0:57]} Rc8 {[%emt 0:0:0]} 30. Ra3 {[%emt 0:0:22]} Nd4 {[%emt 0:0:2]} 31. Rd1 {[%emt 0:0:13]} Nf5 {[%emt 0:0:26]} 32. c4 {[%emt 0:1:59]} Rc5 {[%emt 0:0:4]} 33. Nd7 {[%emt 0:0:0]} R5xc7 {[%emt 0:0:3]} 34. Nb6 {[%emt 0:0:1]} Rd8 {[%emt 0:0:12]} 35. g4 {[%emt 0:2:34]} Nh4 {[%emt 0:0:18]} 36. f4 {[%emt 0:0:15]} d4 {[%emt 0:0:18]
} 37. Kf2 {[%emt 0:0:6]} Ng6 {[%emt 0:0:30]} 38. Kg3 {[%emt 0:0:0]} e5 {[%emt 0:0:12]} 39. f5 {[%emt 0:0:21]} Nf4 {[%emt 0:0:1]} 40. Kf3 {[%emt 0:0:1]} d3 {[%emt 0:0:28]} 41. Ke3 {[%emt 0:0:36]} Rd4 {[%emt 0:0:0]} 42. Kd2 {[%emt 0:0:17]} Re4 {[%emt 0:0:31]} 43. Kc3 {[%emt 0:1:23]} Re2 {[%emt 0:0:9]} 44. Kb4 {[%emt 0:0:37]} e4 {[%emt 0:0:31]} 45. h4 {[%emt 0:0:4]
} d2 {[%emt 0:0:23]} 46. Raa1 {[%emt 0:1:35]} Re1 {[%emt 0:0:0]} 47. Rxe1 {[%emt 0:0:42]} dxe1=Q+ {[%emt 0:0:4]} 48. Rxe1 {[%emt 0:0:0]} Nd3+ {[%emt 0:0:1]} 49. Kc3 {[%emt 0:0:2]} Nxe1 {[%emt 0:0:1]} 50. Kd4 {[%emt 0:0:1]} Re7 {[%emt 0:0:14]} 51. Nd5 {[%emt 0:0:1]} Re8 {[%emt 0:0:6]
} 52. Ne3 {[%emt 0:0:10]} Nf3+ {[%emt 0:0:4]} 53. Kd5 {[%emt 0:0:1]
} Re5+ {[%emt 0:0:12]} 54. Kd6 {[%emt 0:0:2]} Rxa5 {[%emt 0:0:0]} 55. c5 {[%emt 0:0:1]} Nd4 {[%emt 0:0:17]} 56. Kd5 {[%emt 0:0:1]} Nb3 {[%emt 0:0:6] Kd4} 0-1

[Event "FIDE World Rapid-ch Open 2018"]
[White "Jumabayev, Rinat"]
[Black "Jobava, Baadur"]
[Site "St. Petersburg"]
[Round "13.36"]
[Annotator "ChessBase"]
[Result "0-1"]
[Date "2018.12.28"]
[WhiteElo "2602"]
[BlackElo "2627"]
[PlyCount "124"]
[TimeControl "900+10"]

1. Nf3 {[%emt 0:0:29]} d5 {[%emt 0:0:0]} 2. g3 {[%emt 0:0:2]} c6 {[%emt 0:0:0]} 3. Bg2 {[%emt 0:0:3]} Bf5 {[%emt 0:0:6]} 4. d3 {[%emt 0:0:20]} h6 {[%emt 0:0:9]} 5. 0-0 {[%emt 0:0:13]} e6 {[%emt 0:0:2]} 6. c4 {[%emt 0:0:0]} dxc4 {[%emt 0:0:7]} 7. dxc4 {[%emt 0:0:3]} Qxd1 {[%emt 0:0:7]} 8. Rxd1 {[%emt 0:0:2]} Bc2 {[%emt 0:0:6]} 9. Rd2 {[%emt 0:0:7]} Bh7 {[%emt 0:0:3]
} 10. b3 {[%emt 0:0:33]} Bb4 {[%emt 0:0:37]} 11. Rd1 {[%emt 0:0:0]} Nf6 {[%emt 0:0:15]} 12. Bb2 {[%emt 0:0:4]} 0-0 {[%emt 0:0:28]} 13. Ne5 {[%emt 0:0:36]} a5 {[%emt 0:0:24]} 14. Nc3 {[%emt 0:0:7]} Na6 {[%emt 0:0:0]} 15. Na4 {[%emt 0:2:21]} Rad8 {[%emt 0:0:28]} 16. Nd3 {[%emt 0:0:27]} Be7 {[%emt 0:3:10]} 17. Bc3 {[%emt 0:1:2]} b5 {[%emt 0:0:52]} 18. Nab2 {[%emt 0:3:1]
} b4 {[%emt 0:0:39]} 19. Be1 {[%emt 0:0:8]} Ne4 {[%emt 0:0:0]} 20. Na4 {[%emt 0:0:2]} Bf6 {[%emt 0:1:33]} 21. Rac1 {[%emt 0:0:1]} Bg5 {[%emt 0:0:38]} 22. Ra1 {[%emt 0:0:23]} Bf6 {[%emt 0:1:6]} 23. Rac1 {[%emt 0:0:2]
} Bg5 {[%emt 0:0:5]} 24. f4 {[%emt 0:0:19]} Bf6 {[%emt 0:0:0]} 25. Ne5 {[%emt 0:0:2]} c5 {[%emt 0:1:45]} 26. Bxe4 {[%emt 0:0:40]} Bxe4 {[%emt 0:0:5]} 27. Bf2 {[%emt 0:0:2]} Rxd1+ {[%emt 0:1:57]} 28. Rxd1 {[%emt 0:0:2]} Rd8 {[%emt 0:0:2]} 29. Rxd8+ {[%emt 0:2:49]} Bxd8 {[%emt 0:0:0]} 30. Nxc5 {[%emt 0:2:58]} Nxc5 {[%emt 0:0:3]} 31. Bxc5 {[%emt 0:0:0]} Bb1 {[%emt 0:0:1]} 32. Bd6 {[%emt 0:0:15]} Bxa2 {[%emt 0:0:24]} 33. c5 {[%emt 0:0:1]} Bxb3 {[%emt 0:0:7]} 34. Nc6 {[%emt 0:0:56]} Bf6 {[%emt 0:0:0]} 35. Nxa5 {[%emt 0:0:2]} Bd1 {[%emt 0:1:14]} 36. c6 {[%emt 0:0:17]} Bxe2 {[%emt 0:0:3]} 37. Be5 {[%emt 0:0:50]} Be7 {[%emt 0:0:57]} 38. Kf2 {[%emt 0:0:11]
} Ba6 {[%emt 0:0:7]} 39. Ke3 {[%emt 0:0:29]} f6 {[%emt 0:0:0]} 40. Bd4 {[%emt 0:0:12]} Kf7 {[%emt 0:0:18]} 41. Bb6 {[%emt 0:0:8]} e5 {[%emt 0:0:26]} 42. fxe5 {[%emt 0:0:18]} fxe5 {[%emt 0:0:2]} 43. Nb3 {[%emt 0:0:10]
} Ke8 {[%emt 0:1:32]} 44. Nc5 {[%emt 0:0:3]} Bc8 {[%emt 0:0:0]} 45. Ke4 {[%emt 0:0:1]} Bf6 {[%emt 0:0:24]} 46. Ba5 {[%emt 0:0:3]} Ke7 {[%emt 0:0:22]} 47. Kd5 {[%emt 0:0:19]} b3 {[%emt 0:0:6]} 48. Bb4 {[%emt 0:0:0]} Kf7 {[%emt 0:0:2]} 49. Bc3 {[%emt 0:0:18]} e4 {[%emt 0:0:26]} 50. Bxf6 {[%emt 0:0:13]} Kxf6 {[%emt 0:0:2]} 51. Nxe4+ {[%emt 0:0:3]} Ke7 {[%emt 0:0:1]
} 52. Nd2 {[%emt 0:0:21]} b2 {[%emt 0:0:4]} 53. Kc5 {[%emt 0:0:0]} Bf5 {[%emt 0:0:7]} 54. Kb6 {[%emt 0:0:3]} Kd8 {[%emt 0:0:14]} 55. Kb7 {[%emt 0:0:7]} Be4 {[%emt 0:0:2]} 56. Nb1 {[%emt 0:0:10]} Ke7 {[%emt 0:0:4]
} 57. Nd2 {[%emt 0:0:3]} Kd8 {[%emt 0:0:6]} 58. Nb1 {[%emt 0:0:0]} Bxb1 {[%emt 0:0:9]} 59. c7+ {[%emt 0:0:1]} Ke7 {[%emt 0:0:1]} 60. c8=Q {[%emt 0:0:3]} Be4+ {[%emt 0:0:2]} 61. Kc7 {[%emt 0:0:5]} b1=Q {[%emt 0:0:2]
} 62. Qd7+ {[%emt 0:0:12]} Kf8 {[%emt 0:0:3]} 0-1

[Event "FIDE World Rapid-ch Open 2018"]
[White "Akopian, Vladimir"]
[Black "Demidov, Mikhail"]
[Site "St. Petersburg"]
[Round "13.37"]
[Annotator "ChessBase"]
[Result "1-0"]
[Date "2018.12.28"]
[WhiteElo "2650"]
[BlackElo "2520"]
[PlyCount "131"]
[TimeControl "900+10"]

1. e4 {[%emt 0:0:0]} Nf6 {[%emt 0:0:0]} 2. e5 {[%emt 0:0:1]} Nd5 {[%emt 0:0:0]
} 3. d4 {[%emt 0:0:2]} d6 {[%emt 0:0:0]} 4. c4 {[%emt 0:0:0]} Nb6 {[%emt 0:0:0]} 5. exd6 {[%emt 0:0:2]} exd6 {[%emt 0:0:0]} 6. Nc3 {[%emt 0:0:7]} Be7 {[%emt 0:0:0]} 7. Bd3 {[%emt 0:0:19]} 0-0 {[%emt 0:0:0]} 8. Nge2 {[%emt 0:0:6]} Bg5 {[%emt 0:0:2]} 9. Bxg5 {[%emt 0:0:43]} Qxg5 {[%emt 0:0:1]} 10. Qd2 {[%emt 0:0:2]} Qxd2+ {[%emt 0:3:37]} 11. Kxd2 {[%emt 0:0:2]} c6 {[%emt 0:0:9]} 12. b3 {[%emt 0:0:12]} N8d7 {[%emt 0:0:0]} 13. f3 {[%emt 0:1:17]} Rd8 {[%emt 0:0:35]} 14. g4 {[%emt 0:0:23]} c5 {[%emt 0:0:21]
} 15. d5 {[%emt 0:0:56]} Ne5 {[%emt 0:1:3]} 16. Be4 {[%emt 0:0:0]} Nbd7 {[%emt 0:0:5]} 17. Raf1 {[%emt 0:0:58]} a6 {[%emt 0:1:9]} 18. g5 {[%emt 0:0:34]} b5 {[%emt 0:0:47]} 19. f4 {[%emt 0:0:2]} Ng6 {[%emt 0:0:0]} 20. h4 {[%emt 0:1:23]} Rb8 {[%emt 0:2:50]} 21. Bd3 {[%emt 0:1:39]} bxc4 {[%emt 0:0:45]} 22. bxc4 {[%emt 0:0:4]} Rb2+ {[%emt 0:0:8]} 23. Kc1 {[%emt 0:0:4]
} Rb4 {[%emt 0:0:2]} 24. a3 {[%emt 0:1:14]} Rb3 {[%emt 0:0:0]} 25. Kc2 {[%emt 0:0:2]} Rxa3 {[%emt 0:0:6]} 26. Kb2 {[%emt 0:4:5]} Ra5 {[%emt 0:0:2]} 27. Nc1 {[%emt 0:0:2]} Nde5 {[%emt 0:1:30]} 28. fxe5 {[%emt 0:0:5]
} Nxe5 {[%emt 0:0:1]} 29. Be2 {[%emt 0:0:25]} Bd7 {[%emt 0:0:0]} 30. Nb3 {[%emt 0:0:26]} Rb8 {[%emt 0:0:1]} 31. Ra1 {[%emt 0:0:59]} Rxa1 {[%emt 0:0:1]} 32. Rxa1 {[%emt 0:0:0]} Rb6 {[%emt 0:0:0]} 33. Na4 {[%emt 0:1:37]
} Bxa4 {[%emt 0:1:27]} 34. Rxa4 {[%emt 0:0:2]} Ng6 {[%emt 0:0:0]} 35. h5 Nf4 36. Bg4 {[%emt 0:1:5]} Nd3+ {[%emt 0:0:49]} 37. Kc3 {[%emt 0:0:1]
} Nf2 {[%emt 0:0:1]} 38. Bf3 {[%emt 0:0:34]} Nh3 {[%emt 0:0:0]} 39. g6 {[%emt 0:0:15]} hxg6 {[%emt 0:0:12]} 40. hxg6 {[%emt 0:0:1]} fxg6 {[%emt 0:0:23]} 41. Bg4 {[%emt 0:0:14]} Ng5 {[%emt 0:0:11]} 42. Nd2 {[%emt 0:0:7]
} Kf8 {[%emt 0:0:3]} 43. Ra1 {[%emt 0:0:10]} Nf7 {[%emt 0:0:0]} 44. Nf3 {[%emt 0:0:3]} Ke7 {[%emt 0:0:36]} 45. Bc8 {[%emt 0:0:6]} Rb8 {[%emt 0:0:26]} 46. Be6 {[%emt 0:0:31]} Nd8 {[%emt 0:0:5]} 47. Bh3 {[%emt 0:0:14]
} Ra8 {[%emt 0:0:18]} 48. Re1+ {[%emt 0:0:4]} Kf6 {[%emt 0:0:0]} 49. Re8 {[%emt 0:0:14]} a5 {[%emt 0:0:1]} 50. Nd2 {[%emt 0:0:14]} Kf7 {[%emt 0:0:1]} 51. Bd7 {[%emt 0:0:15]} a4 {[%emt 0:0:0]} 52. Ne4 {[%emt 0:0:0]} a3 {[%emt 0:0:1]} 53. Nxd6+ Kf6 54. Ne4+ {[%emt 0:0:16]} Kf7 {[%emt 0:0:0]
} 55. d6 {[%emt 0:0:22]} g5 {[%emt 0:0:36]} 56. Nxc5 {[%emt 0:0:0]} a2 {[%emt 0:0:8]} 57. Nb3 {[%emt 0:0:1]} Ra3 {[%emt 0:1:37]} 58. Re1 {[%emt 0:0:1]} Nb7 {[%emt 0:0:2]} 59. Kb2 {[%emt 0:0:32]} Ra7 {[%emt 0:0:7]
} 60. c5 {[%emt 0:0:21]} Nxd6 {[%emt 0:0:18]} 61. Be6+ {[%emt 0:0:2]
} Ke7 {[%emt 0:0:7]} 62. Bg4+ {[%emt 0:0:5]} Kd8 {[%emt 0:0:0]} 63. cxd6 {[%emt 0:0:2]} Ra4 {[%emt 0:0:1]} 64. Rg1 {[%emt 0:0:12]} g6 {[%emt 0:0:20]} 65. Nc5 {[%emt 0:0:17]} Ra7 {[%emt 0:0:33]} 66. Rh1 {[%emt 0:0:4]
} 1-0

[Event "FIDE World Rapid-ch Open 2018"]
[White "Moiseenko, Vadim"]
[Black "Dreev, Aleksey"]
[Site "St. Petersburg"]
[Round "13.38"]
[Annotator "ChessBase"]
[Result "1-0"]
[Date "2018.12.28"]
[WhiteElo "2501"]
[BlackElo "2670"]
[PlyCount "93"]
[TimeControl "900+10"]

1. e4 {[%emt 0:0:0]} c6 {[%emt 0:0:0]} 2. d4 {[%emt 0:0:0]} d5 {[%emt 0:0:0]} 3. e5 {[%emt 0:0:0]} Bf5 {[%emt 0:0:0]} 4. Nf3 {[%emt 0:0:0]} e6 {[%emt 0:0:0]} 5. Be2 {[%emt 0:0:0]} c5 {[%emt 0:0:0]} 6. Be3 {[%emt 0:0:0]} cxd4 {[%emt 0:0:4]} 7. Nxd4 {[%emt 0:0:3]} Ne7 {[%emt 0:0:2]} 8. c4 {[%emt 0:0:52]} Nbc6 {[%emt 0:0:14]} 9. Nc3 {[%emt 0:0:10]} dxc4 {[%emt 0:0:19]
} 10. Qa4 {[%emt 0:2:9]} Bd3 {[%emt 0:3:12]} 11. 0-0-0 {[%emt 0:1:0]
} Qd7 {[%emt 0:0:26]} 12. Bxd3 {[%emt 0:1:55]} cxd3 {[%emt 0:0:0]} 13. Ndb5 {[%emt 0:0:2]} Nf5 {[%emt 0:4:15]} 14. Bg5 {[%emt 0:2:35]} Be7 {[%emt 0:1:32]} 15. Bxe7 {[%emt 0:0:9]} Qxe7 {[%emt 0:0:2]} 16. g4 {[%emt 0:0:21]
} Nh6 {[%emt 0:2:54]} 17. Nd6+ {[%emt 0:0:15]} Kf8 {[%emt 0:0:0]} 18. Qf4 {[%emt 0:1:2]} g5 {[%emt 0:1:21]} 19. Qg3 {[%emt 0:0:16]} f5 {[%emt 0:0:42]
} 20. h3 {[%emt 0:0:55]} Nf7 {[%emt 0:0:50]} 21. Rhe1 {[%emt 0:0:0]} Nfxe5 {[%emt 0:1:37]} 22. Rxe5 {[%emt 0:1:23]} f4 {[%emt 0:0:0]} 23. Qxd3 {[%emt 0:0:32]} Nxe5 {[%emt 0:0:1]} 24. Qb5 {[%emt 0:0:48]} Ng6 {[%emt 0:0:12]
} 25. Nxb7 {[%emt 0:0:9]} a6 {[%emt 0:0:42]} 26. Qc6 {[%emt 0:0:0]} Ne5 {[%emt 0:0:4]} 27. Qe4 {[%emt 0:0:3]} Nf7 {[%emt 0:0:9]} 28. Nc5 {[%emt 0:1:7]} Re8 {[%emt 0:0:9]} 29. b4 {[%emt 0:0:40]} Kg7 {[%emt 0:0:0]} 30. Rd7 {[%emt 0:0:39]} Qf6 {[%emt 0:0:2]} 31. Kc2 {[%emt 0:0:16]} h5 {[%emt 0:0:39]} 32. Qb7 {[%emt 0:0:20]} hxg4 {[%emt 0:0:5]} 33. N3e4 {[%emt 0:0:5]
} Qg6 {[%emt 0:0:7]} 34. hxg4 {[%emt 0:0:14]} Rh2 {[%emt 0:0:0]} 35. Kb3 {[%emt 0:0:7]} Rh3+ {[%emt 0:0:4]} 36. Ka4 {[%emt 0:0:0]} Rhh8 {[%emt 0:0:9]} 37. Nxg5 {[%emt 0:0:18]} Qc2+ {[%emt 0:0:1]} 38. Ka5 {[%emt 0:0:9]
} Qxa2+ {[%emt 0:0:4]} 39. Na4 {[%emt 0:0:2]} Kf6 {[%emt 0:0:0]} 40. Ne4+ {[%emt 0:0:26]} Kg6 {[%emt 0:0:1]} 41. Rxf7 {[%emt 0:0:19]
} Qd5+ {[%emt 0:0:1]} 42. Nac5 {[%emt 0:0:6]} Qa2+ {[%emt 0:0:5]} 43. Kb6 {[%emt 0:0:12]} Ref8 {[%emt 0:0:17]} 44. Rg7+ {[%emt 0:0:7]} Kh6 {[%emt 0:0:0]} 45. g5+ {[%emt 0:0:11]} Kh5 {[%emt 0:0:1]} 46. Nf6+ {[%emt 0:0:7]} Kh4 {[%emt 0:0:3]} 47. Qh1# {[%emt 0:0:8]} 1-0

[Event "FIDE World Rapid-ch Open 2018"]
[White "Grachev, Boris"]
[Black "Zvjaginsev, Vadim"]
[Site "St. Petersburg"]
[Round "13.39"]
[Annotator "ChessBase"]
[Result "1-0"]
[Date "2018.12.28"]
[WhiteElo "2626"]
[BlackElo "2642"]
[PlyCount "93"]
[TimeControl "900+10"]

1. Nf3 {[%emt 0:0:0]} Nf6 {[%emt 0:0:0]} 2. c4 {[%emt 0:0:0]} d6 {[%emt 0:0:32]
} 3. g3 {[%emt 0:0:5]} c5 {[%emt 0:0:23]} 4. Bg2 {[%emt 0:0:0]} Nc6 {[%emt 0:0:5]} 5. 0-0 {[%emt 0:0:22]} g6 {[%emt 0:0:2]} 6. d4 {[%emt 0:0:24]
} cxd4 {[%emt 0:0:2]} 7. Nxd4 {[%emt 0:0:2]} Bd7 {[%emt 0:0:0]} 8. Nc3 {[%emt 0:0:14]} Bg7 {[%emt 0:0:2]} 9. Nc2 {[%emt 0:0:43]} Rc8 {[%emt 0:0:19]
} 10. b3 {[%emt 0:0:29]} Qa5 {[%emt 0:1:9]} 11. Nb5 {[%emt 0:0:0]} a6 {[%emt 0:0:37]} 12. Bd2 {[%emt 0:0:3]} Qd8 {[%emt 0:0:7]} 13. Nc3 {[%emt 0:0:1]} 0-0 {[%emt 0:0:27]} 14. Rc1 {[%emt 0:0:7]} Rb8 {[%emt 0:1:18]
} 15. a4 {[%emt 0:0:25]} Qb6 {[%emt 0:1:58]} 16. Ne3 {[%emt 0:0:0]} e6 {[%emt 0:0:7]} 17. h3 {[%emt 0:0:48]} Rbd8 {[%emt 0:0:55]} 18. Ng4 {[%emt 0:0:51]} Nxg4 {[%emt 0:3:37]} 19. hxg4 {[%emt 0:0:2]} Ne5 {[%emt 0:0:10]
} 20. g5 {[%emt 0:0:57]} Bc6 {[%emt 0:0:16]} 21. Be3 {[%emt 0:0:0]} Qb4 {[%emt 0:0:38]} 22. Bd4 {[%emt 0:0:36]} Bxg2 {[%emt 0:0:48]} 23. Kxg2 {[%emt 0:0:2]} d5 {[%emt 0:0:5]} 24. cxd5 {[%emt 0:0:50]} exd5 {[%emt 0:0:7]
} 25. Rh1 {[%emt 0:0:49]} Qe7 {[%emt 0:0:29]} 26. Qd2 {[%emt 0:0:0]} f6 {[%emt 0:0:43]} 27. gxf6 {[%emt 0:0:56]} Bxf6 {[%emt 0:0:5]} 28. Qe3 {[%emt 0:1:48]} Nc6 {[%emt 0:1:24]} 29. Qxe7 {[%emt 0:0:35]} Bxe7 {[%emt 0:0:2]
} 30. Bb6 {[%emt 0:0:6]} Rd7 {[%emt 0:0:2]} 31. Rhd1 {[%emt 0:0:13]
} d4 {[%emt 0:0:42]} 32. Ne4 {[%emt 0:0:15]} Rd5 {[%emt 0:0:0]} 33. Bc5 {[%emt 0:0:45]} Re5 {[%emt 0:0:57]} 34. Bxe7 {[%emt 0:0:20]} Rxe7 {[%emt 0:0:2]} 35. f3 {[%emt 0:0:5]} h5 {[%emt 0:0:17]} 36. b4 {[%emt 0:0:49]
} Rf5 {[%emt 0:0:8]} 37. Rc5 {[%emt 0:0:49]} Kg7 {[%emt 0:0:0]} 38. Rc4 {[%emt 0:1:5]} g5 {[%emt 0:0:24]} 39. Rc5 {[%emt 0:0:15]} Rxc5 {[%emt 0:0:16]} 40. bxc5 {[%emt 0:0:1]} g4 {[%emt 0:0:9]} 41. Kf2 {[%emt 0:0:28]
} Kg6 {[%emt 0:0:9]} 42. Rb1 {[%emt 0:0:10]} Na5 {[%emt 0:0:0]} 43. Rb6+ {[%emt 0:0:6]} Kf5 {[%emt 0:0:17]} 44. Rh6 {[%emt 0:0:19]} gxf3 {[%emt 0:0:2]} 45. exf3 {[%emt 0:0:5]} Nc4 {[%emt 0:0:14]} 46. Rxh5+ {[%emt 0:0:35]} Kg6 {[%emt 0:0:5]} 47. Rd5 {[%emt 0:0:13]} 1-0

[Event "FIDE World Rapid-ch Open 2018"]
[White "Pantsulaia, Levan"]
[Black "Vishnu Prasanna. V"]
[Site "St. Petersburg"]
[Round "13.40"]
[Annotator "ChessBase"]
[Result "1-0"]
[Date "2018.12.28"]
[WhiteElo "2597"]
[BlackElo "2518"]
[PlyCount "87"]
[TimeControl "900+10"]

1. Nf3 {[%emt 0:0:0]} d5 {[%emt 0:0:0]} 2. g3 {[%emt 0:0:0]} Nf6 {[%emt 0:0:0]
} 3. Bg2 {[%emt 0:0:0]} g6 {[%emt 0:0:9]} 4. c4 {[%emt 0:0:0]} dxc4 {[%emt 0:0:3]} 5. Na3 {[%emt 0:0:0]} Bg7 {[%emt 0:0:7]} 6. Nxc4 {[%emt 0:0:1]} 0-0 {[%emt 0:0:5]} 7. 0-0 {[%emt 0:0:16]} Be6 {[%emt 0:0:0]} 8. b3 {[%emt 0:0:58]} c5 {[%emt 0:0:2]} 9. d4 {[%emt 0:0:8]} cxd4 {[%emt 0:1:17]
} 10. Nxd4 {[%emt 0:0:40]} Bd5 {[%emt 0:0:3]} 11. Bb2 {[%emt 0:0:6]
} Bxg2 {[%emt 0:0:40]} 12. Kxg2 {[%emt 0:0:2]} Nbd7 {[%emt 0:0:0]} 13. e3 {[%emt 0:5:36]} Nb6 {[%emt 0:1:25]} 14. Rc1 {[%emt 0:2:26]} Rc8 {[%emt 0:1:48]} 15. Ba3 {[%emt 0:2:3]} Qd5+ {[%emt 0:2:15]} 16. Qf3 {[%emt 0:0:9]
} Qxf3+ {[%emt 0:0:17]} 17. Kxf3 {[%emt 0:0:5]} Nxc4 {[%emt 0:0:0]} 18. Rxc4 {[%emt 0:0:19]} Rxc4 {[%emt 0:0:59]} 19. bxc4 {[%emt 0:0:0]} Rc8 {[%emt 0:0:2]} 20. c5 {[%emt 0:1:47]} Nd7 {[%emt 0:0:43]} 21. Rc1 {[%emt 0:0:1]} Ne5+ {[%emt 0:1:5]} 22. Ke2 {[%emt 0:0:6]} Nc6 {[%emt 0:0:0]} 23. Nb3 {[%emt 0:0:55]} Rd8 {[%emt 0:0:39]} 24. Rc4 {[%emt 0:0:33]} f5 {[%emt 0:1:22]} 25. Ra4 {[%emt 0:0:1]} Kf7 {[%emt 0:0:50]} 26. Na5 {[%emt 0:0:46]
} Bc3 {[%emt 0:1:45]} 27. Nb3 {[%emt 0:0:16]} a5 {[%emt 0:0:0]} 28. Bc1 {[%emt 0:0:9]} Rd5 {[%emt 0:0:38]} 29. Rc4 {[%emt 0:0:26]} Be5 {[%emt 0:0:22]} 30. Bd2 {[%emt 0:0:9]} Bc7 {[%emt 0:0:2]} 31. a4 {[%emt 0:0:0]} Rd8 {[%emt 0:0:14]} 32. h3 {[%emt 0:0:28]} e5 {[%emt 0:0:6]} 33. Rc2 {[%emt 0:0:30]} h5 {[%emt 0:0:13]} 34. Bc3 {[%emt 0:0:7]} Ke6 {[%emt 0:0:0]} 35. Be1 {[%emt 0:0:18]} e4 {[%emt 0:0:12]} 36. Rb2 {[%emt 0:0:23]} Rd3 {[%emt 0:0:31]} 37. g4 {[%emt 0:0:22]} Be5 {[%emt 0:0:29]} 38. Rb1 {[%emt 0:0:3]
} Bc3 {[%emt 0:0:15]} 39. gxf5+ {[%emt 0:0:8]} gxf5 {[%emt 0:0:0]} 40. Nc1 {[%emt 0:0:2]} Bxe1 {[%emt 0:0:26]} 41. Nxd3 {[%emt 0:0:1]
} exd3+ {[%emt 0:0:3]} 42. Kxe1 {[%emt 0:0:2]} Ne5 {[%emt 0:0:4]} 43. Rxb7 {[%emt 0:0:3]} Kd5 {[%emt 0:0:1]} 44. Kd2 {[%emt 0:0:18]} 1-0